[Event "SixDays Budapest GM-C 09-2024"]
[Site "Budapest"]
[Date "2024.09.26"]
[Round "5.1"]
[White "Gatineau, Yovann"]
[Black "Aczel, Gergely"]
[Result "0-1"]
[ECO "B10"]
[WhiteElo "2400"]
[BlackElo "2460"]
[Annotator "RC"]
[PlyCount "160"]
[EventDate "2024.09.24"]
[EventType "tourn"]
[EventCountry "HUN"]
[SourceTitle "playchess.com"]
[Source "ChessBase"]
[SourceQuality "1"]
[TimeControl "5400+30"]

1. e4 {[%emt 0:03:34]} c6 {[%emt 0:00:06]} 2. Nf3 {[%emt 0:00:14]} d5 {[%emt 0:00:05]} 3. e5 {[%emt 0:00:06]} Bg4 {[%emt 0:01:26]} 4. Be2 {[%emt 0:02:17]} e6 {[%emt 0:00:09]} 5. O-O {[%emt 0:02:11]} c5 {[%emt 0:01:06]} 6. c4 {[%emt 0:01:07]} Nc6 {[%emt 0:00:42]} 7. cxd5 {[%emt 0:06:53]} Qxd5 {[%emt 0:00:08]} 8. Nc3 {[%emt 0:01:16]} Qd7 {[%emt 0:00:08]} 9. Qa4 {[%emt 0:06:30]} Bxf3 {[%emt 0:27:08]} 10. Bxf3 {[%emt 0:00:19]} Nxe5 {[%emt 0:00:14]} 11. Qxd7+ {[%emt 0:01:12]} Kxd7 {[%emt 0:00:05]} 12. Bxb7 {[%emt 0:00:04]} Rb8 {[%emt 0:00:05]} 13. Ba6 {[%emt 0:01:11]} Nf6 {[%emt 0:00:22]} 14. b3 {[%emt 0:11:03]} Bd6 {[%emt 0:18:35]} 15. Ba3 {[%emt 0:02:53]} c4 {[%emt 0:06:26]} 16. Bxd6 {[%emt 0:12:39]} Kxd6 {[%emt 0:00:06]} 17. f4 {[%emt 0:03:17]} Nc6 {[%emt 0:02:15]} 18. Bxc4 {[%emt 0:00:09]} Nd4 {[%emt 0:02:58]} 19. Rae1 {[%emt 0:04:40]} Rhd8 {[%emt 0:02:14]} 20. d3 {[%emt 0:11:55]} g6 {[%emt 0:05:36]} 21. h3 {[%emt 0:04:57]} h5 {[%emt 0:00:11]} 22. g3 {[%emt 0:02:22]} Ke7 {[%emt 0:01:09]} 23. Kg2 {[%emt 0:01:45]} Rd7 {[%emt 0:00:23]} 24. Re5 {[%emt 0:01:42]} Kf8 {[%emt 0:03:33]} 25. Rf2 {[%emt 0:02:37]} Kg7 {[%emt 0:00:06]} 26. Ra5 {[%emt 0:00:55]} Nc6 {[%emt 0:04:14]} 27. Ra4 {[%emt 0:00:58]} Nd4 {[%emt 0:00:04]} 28. Ra5 {[%emt 0:00:19]} Nc6 {[%emt 0:00:06]} 29. Ra4 {[%emt 0:00:04]} Nd4 {[%emt 0:00:04]} 30. Rb2 {[%emt 0:01:20]} Nf5 {[%emt 0:01:27]} 31. Kf2 {[%emt 0:00:46]} Nd6 {[%emt 0:08:29]} 32. Re2 {[%emt 0:03:46]} Rb6 {[%emt 0:10:04]} 33. Ne4 {[%emt 0:01:06]} Nf5 {[%emt 0:00:57]} 34. Nxf6 {[%emt 0:01:34]} Kxf6 {[%emt 0:00:01]} 35. g4 {[%emt 0:01:32]} hxg4 {[%emt 0:00:03]} 36. hxg4 {[%emt 0:00:04]} Nd6 {[%emt 0:01:45]} 37. Re5 {[%emt 0:00:42]} Rb8 {[%emt 0:01:01]} 38. Re3 {[%emt 0:07:16]} Rh8 {[%emt 0:00:39]} 39. Kg3 {[%emt 0:00:31]} Rh1 {[%emt 0:00:32]} 40. Re2 {[%emt 0:01:25]} Rg1+ {[%emt 0:01:44]} 41. Rg2 {[%emt 0:00:32]} Rf1 {[%emt 0:00:03]} 42. Rf2 {[%emt 0:00:26]} Rg1+ {[%emt 0:00:11]} 43. Rg2 {[%emt 0:00:04]} Rf1 {[%emt 0:00:04]} 44. Rf2 {[%emt 0:00:47]} Rg1+ {[%emt 0:00:01]} 45. Kf3 {[%emt 0:00:07]} g5 {[%emt 0:01:43]} 46. fxg5+ {[%emt 0:00:45]} Kxg5 {[%emt 0:00:01]} 47. Ra5+ {[%emt 0:00:46]} Kg6 {[%emt 0:00:02]} 48. Rg2 {[%emt 0:00:34]} Rf1+ {[%emt 0:00:18]} 49. Rf2 {[%emt 0:00:25]} Rg1 {[%emt 0:00:10]} 50. Rg2 {[%emt 0:00:04]} Rd1 {[%emt 0:01:09]} 51. Ke2 {[%emt 0:01:15]} Rb1 {[%emt 0:00:57]} 52. Ke3 {[%emt 0:00:34]} Rd1 {[%emt 0:00:17]} 53. Rd2 {[%emt 0:00:32]} Rg1 {[%emt 0:00:20]} 54. Kf3 {[%emt 0:00:41]} Rf1+ {[%emt 0:00:30]} 55. Rf2 {[%emt 0:00:40]} Rg1 {[%emt 0:00:11]} 56. Re5 {[%emt 0:00:28]} Rd8 {[%emt 0:01:39]} 57. Ree2 {[%emt 0:00:33]} Ne8 {[%emt 0:01:52]} 58. Rg2 {[%emt 0:00:16]} Rd1 {[%emt 0:00:07]} 59. Rd2 {[%emt 0:00:29]} Rf1+ {[%emt 0:00:14]} 60. Rdf2 {[%emt 0:00:14]} Re1 {[%emt 0:00:22]} 61. Re2 {[%emt 0:00:17]} Rf1+ {[%emt 0:00:06]} 62. Ke3 {[%emt 0:00:06]} Nf6 {[%emt 0:00:56]} 63. Ref2 {[%emt 0:00:58]} Rxf2 {[%emt 0:00:41]} 64. Kxf2 {[%emt 0:00:07]} Kg5 {[%emt 0:00:05]} 65. b4 {[%emt 0:01:13]} Nxg4+ {[%emt 0:00:18]} 66. Ke2 {[%emt 0:00:24]} f5 {[%emt 0:01:06]} 67. b5 {[%emt 0:00:45]} e5 {[%emt 0:00:01]} 68. a4 {[%emt 0:00:10]} Rd4 {[%emt 0:01:18]} 69. Kd2 {[%emt 0:01:00]} Rd6 {[%emt 0:02:19]} 70. Kc3 {[%emt 0:00:17]} f4 {[%emt 0:00:14]} 71. a5 {[%emt 0:00:34]} f3 {[%emt 0:00:03]} 72. Rg1 {[%emt 0:00:23]} f2 {[%emt 0:00:19]} 73. Ra1 {[%emt 0:00:46]} Ne3 {[%emt 0:00:15]} 74. b6 {[%emt 0:00:35]} axb6 {[%emt 0:00:18]} 75. a6 {[%emt 0:00:20]} Rd7 {[%emt 0:00:13]} 76. d4 {[%emt 0:00:39]} exd4+ {[%emt 0:00:14]} 77. Kb3 {[%emt 0:00:13]} d3 {[%emt 0:00:43]} 78. Bb5 {[%emt 0:00:40]} Rd8 {[%emt 0:01:01]} 79. Kc3 {[%emt 0:00:39]} d2 {[%emt 0:00:37]} 80. Be2 {[%emt 0:00:18]} d1=Q {[%emt 0:00:39]} 0-1

[Event "SixDays Budapest GM-C 09-2024"]
[Site "Budapest"]
[Date "2024.09.26"]
[Round "5.2"]
[White "Gretarsson, Helgi Ass"]
[Black "Grebennikov, Nikolai A."]
[Result "1/2-1/2"]
[ECO "B38"]
[WhiteElo "2450"]
[BlackElo "2220"]
[Annotator "ChessBase"]
[PlyCount "101"]
[EventDate "2024.09.24"]
[EventType "tourn"]
[EventCountry "HUN"]
[SourceTitle "playchess.com"]
[Source "ChessBase"]
[SourceQuality "1"]
[TimeControl "5400+30"]

1. Nf3 {[%emt 0:00:02]} c5 {[%emt 0:06:12]} 2. c4 {[%emt 0:00:26]} g6 {[%emt 0:00:06]} 3. d4 {[%emt 0:00:30]} cxd4 {[%emt 0:00:18]} 4. Nxd4 {[%emt 0:00:11]} Nc6 5. e4 {[%emt 0:08:50]} Bg7 {[%emt 0:01:36]} 6. Be3 {[%emt 0:00:06]} Qb6 {[%emt 0:06:50]} 7. Nb3 {[%emt 0:06:30]} Qc7 {[%emt 0:03:08]} 8. Qd2 {[%emt 0:00:20]} Nf6 {[%emt 0:07:59]} 9. Nc3 {[%emt 0:16:01]} Ng4 {[%emt 0:09:59]} 10. Bf4 {[%emt 0:00:11]} e5 {[%emt 0:18:19]} 11. Bg3 {[%emt 0:00:21]} O-O {[%emt 0:01:39]} 12. h3 {[%emt 0:06:32]} Bh6 {[%emt 0:04:22]} 13. Qd1 {[%emt 0:00:57]} Nf6 {[%emt 0:00:13]} 14. Bh4 {[%emt 0:00:25]} Ne8 {[%emt 0:02:48]} 15. Nd5 {[%emt 0:12:52]} Qb8 {[%emt 0:00:02]} 16. c5 {[%emt 0:00:40]} d6 {[%emt 0:03:13]} 17. Bb5 {[%emt 0:13:53]} a6 {[%emt 0:03:35]} 18. Bxc6 {[%emt 0:07:46]} bxc6 {[%emt 0:00:19]} 19. Nb6 {[%emt 0:00:08]} Ra7 {[%emt 0:08:05]} 20. Nxc8 {[%emt 0:00:08]} Qxc8 {[%emt 0:00:15]} 21. cxd6 {[%emt 0:00:05]} g5 {[%emt 0:12:59]} 22. Nc5 {[%emt 0:01:05]} gxh4 {[%emt 0:01:39]} 23. d7 {[%emt 0:00:15]} Qd8 {[%emt 0:00:22]} 24. dxe8=Q {[%emt 0:00:20]} Qa5+ {[%emt 0:00:15]} 25. Kf1 {[%emt 0:02:33]} Rxe8 {[%emt 0:00:11]} 26. Qg4+ Kh8 {[%emt 0:01:23]} 27. Nb3 {[%emt 0:02:46]} Qb5+ {[%emt 0:02:18]} 28. Kg1 {[%emt 0:03:08]} Rg8 {[%emt 0:00:10]} 29. Qxh4 {[%emt 0:01:04]} Rg6 {[%emt 0:00:02]} 30. Qd8+ {[%emt 0:01:19]} Kg7 {[%emt 0:00:28]} 31. Qa5 {[%emt 0:01:14]} Qe2 {[%emt 0:02:28]} 32. Qxe5+ {[%emt 0:03:24]} f6 {[%emt 0:01:19]} 33. Nd4 {[%emt 0:04:42]} Qd3 {[%emt 0:02:21]} 34. Nf5+ {[%emt 0:00:23]} Kf7 {[%emt 0:00:16]} 35. Nd6+ {[%emt 0:05:43]} Kg8 {[%emt 0:01:05]} 36. Qe6+ {[%emt 0:00:52]} Kh8 {[%emt 0:00:23]} 37. Nf5 {[%emt 0:00:06]} Bf4 {[%emt 0:00:44]} 38. Qxc6 {[%emt 0:02:16]} Rd7 {[%emt 0:00:21]} 39. Rf1 {[%emt 0:00:48]} Rd8 {[%emt 0:01:00]} 40. Nh4 {[%emt 0:00:31]} Rh6 {[%emt 0:00:38]} 41. g3 {[%emt 0:00:44]} Rg8 {[%emt 0:00:45]} 42. Nf5 {[%emt 0:00:24]} Rhg6 {[%emt 0:00:20]} 43. Kh2 {[%emt 0:00:11]} Bxg3+ {[%emt 0:00:55]} 44. Nxg3 {[%emt 0:00:06]} Rxg3 {[%emt 0:00:09]} 45. Qxf6+ {[%emt 0:00:04]} R8g7 {[%emt 0:00:21]} 46. Qf8+ {[%emt 0:00:58]} Rg8 {[%emt 0:00:05]} 47. Qf6+ {[%emt 0:00:04]} R8g7 {[%emt 0:00:31]} 48. Qf8+ {[%emt 0:00:23]} Rg8 {[%emt 0:00:05]} 49. Qf6+ {[%emt 0:00:04]} R8g7 {[%emt 0:00:05]} 50. Qf8+ {[%emt 0:00:12]} Rg8 {[%emt 0:00:08]} 51. Qf6+ {[%emt 0:00:07]} 1/2-1/2

[Event "SixDays Budapest GM-C 09-2024"]
[Site "Budapest"]
[Date "2024.09.26"]
[Round "5.3"]
[White "Grover, Sahaj"]
[Black "Zia, Tahsin Tajwar"]
[Result "0-1"]
[ECO "B12"]
[WhiteElo "2496"]
[BlackElo "2255"]
[Annotator "TA"]
[PlyCount "80"]
[EventDate "2024.09.24"]
[EventType "tourn"]
[EventCountry "HUN"]
[SourceTitle "playchess.com"]
[Source "ChessBase"]
[SourceQuality "1"]
[TimeControl "5400+30"]

{[%evp 10,80,20,9,22,24,22,24,26,26,25,30,22,0,1,19,2,32,29,0,-12,0,0,0,0,0,29,33,39,20,118,58,56,73,83,0,0,1,16,7,20,0,0,0,16,12,20,0,22,0,0,0,0,-250,-239,-344,-327,-465,-442,-1516,-1736,-2741,-2408,-29989,-29990,-29991,-29992,-29992,-29993,-29993,-29994,-29994,-29995]} 1. e4 {[%emt 0:00:03]} c6 {[%emt 0:00:19]} 2. d4 {[%emt 0:00:06]} d5 {[%emt 0:00:04]} 3. e5 {[%emt 0:00:06]} Bf5 {[%emt 0:00:05]} 4. Nd2 {[%emt 0:00:12]} e6 {[%emt 0:00:06]} 5. Nb3 {[%emt 0:00:05]} Nd7 {[%emt 0:00:05]} 6. Nf3 {[%emt 0:00:06]} Qc7 {[%emt 0:00:03]} 7. Be2 {[%emt 0:00:25]} c5 {[%emt 0:00:16]} 8. c3 {[%emt 0:00:12]} h6 {[%emt 0:00:40][%cal Bh7h6,Bh6g5,Bg5h4][%mdl 32] Weiß hat minimalen Vorteil.} 9. O-O {[%emt 0:01:47]} c4 {[%emt 0:00:14]} 10. Nbd2 {[%emt 0:00:09]} b5 {[%emt 0:01:52]} 11. Nh4 {[%emt 0:01:06]} Bh7 {[%emt 0:00:34]} 12. f4 {[%emt 0:00:06]} g5 {[%emt 0:09:08]} 13. fxg5 {[%emt 0:02:27]} hxg5 {[%emt 0:00:31] [#]} 14. Bh5 $1 {[%emt 0:01:44][%cal Be2h5,Bh5f7,Bf7e6,Be6h3][%mdl 32]} O-O-O $1 {[%emt 0:01:51]} 15. Bxf7 {[%emt 0:05:21]} gxh4 {[%emt 0:00:20]} 16. Bxe6 {[%emt 0:00:07][%cal Od2f3]} Bd3 {[%emt 0:05:24]} 17. Rf2 {[%emt 0:02:07][%cal Od2f3]} Qc6 {[%emt 0:10:25]} 18. Bh3 {[%emt 0:00:07][%mdl 1024] Droht stark e6. Weiss hat Kompensation.} Be7 {[%emt 0:03:36]} 19. Nf3 {[%emt 0:01:45] Droht b4 und aus.} Rf8 {[%emt 0:03:37]} (19... Kb7 $11 {hält das Gleichgewicht.}) 20. e6 {[%emt 0:01:29]} (20. a4 $16) 20... Ndf6 $14 {[%emt 0:01:54] Weiss muss nun ...Ne4 beachten.} 21. Ne5 $1 {[%emt 0:00:05][%csl LRc6,LRd3]} Qe8 {[%emt 0:00:06]} 22. Nd7 {[%emt 0:06:01]} (22. Nxd3 cxd3 23. Qxd3 Qc6) ({Vorzuziehen ist} 22. b3 $16) 22... Kb7 $1 $11 {[%emt 0:07:55] ...Nxd7 ist eine echte Drohung.} 23. a4 {[%emt 0:20:22][%cal Ba2a4,Ba4a5,Ba5a6][%mdl 32]} b4 {[%emt 0:24:08] Und ...Nxd7 würde nun gewinnen.} 24. Nxf8 {[%emt 0:01:21]} Qxf8 {[%emt 0:00:21]} 25. a5 {[%emt 0:00:05] a6+ wäre nun fies.} (25. Bg5 Qe8 26. Bf4 b3 $16) 25... b3 {[%emt 0:00:49]} 26. a6+ {[%emt 0:00:05]} Kb6 {[%emt 0:00:27]} 27. Bf4 {[%emt 0:00:19]} Qe8 $1 {[%emt 0:02:07]} 28. Be5 {[%emt 0:01:36]} Qh5 {[%emt 0:02:12]} 29. Qc1 {[%emt 0:00:15]} Ne4 $1 {[%emt 0:07:27]} 30. Rf7 {[%emt 0:01:38]} Rh7 $36 {[%emt 0:03:46][%mdl 2048] Weiss steht unter Druck. Schach mit Chili.} 31. Rf5 {[%emt 0:10:52] [#]} (31. Qf4 $11 Bg5 32. Rb7+ Rxb7 33. axb7 Kxb7 (33... Bxf4 34. b8=Q+ Kc6 35. Ra6#) 34. Qf7+ Ne7 (34... Qxf7 35. exf7 Be3+ 36. Kh1 $11) 35. Qxh5 Be3+ 36. Kh1 Nf2+ 37. Kg1 Nxh3+ 38. Kh1 Nf2+ 39. Kg1 Ne4+ 40. Kh1 Nf2+ 41. Kg1 Ne4+ 42. Kh1 Nf2+) 31... Ng5 $1 $19 {[%emt 0:03:13]} 32. Rxg5 {[%emt 0:00:20]} (32. Kh1 {ist eine bessere Verteidigung.} Qg6 33. Rxg5 Bxg5 34. Qg1) 32... Bxg5 {[%emt 0:00:24]} 33. Bf4 {[%emt 0:00:34]} (33. Qe1 $142) 33... Rg7 {[%emt 0:00:41]} 34. Ra4 {[%emt 0:01:09]} (34. Qe3 $142 Qh6 35. Bxg5 Qxg5 36. Re1) 34... Bxf4 {[%emt 0:01:25]} 35. Rb4+ {[%emt 0:00:24]} Kc6 {[%emt 0:00:06]} ({Und nicht} 35... Kxa6 36. Qa1#) 36. Qa1 {[%emt 0:00:40]} Qe2 {[%emt 0:01:19] Schwarz setzt Matt.} 37. Rb8 {[%emt 0:01:33]} Bxb8 {[%emt 0:02:25]} 38. Qa4+ {[%emt 0:00:05]} Kb6 {[%emt 0:00:03][%cal Re2e1]} 39. Qb4+ {[%emt 0:00:10]} Kxa6 {[%emt 0:00:06][%cal Re2e1]} 40. Qa4+ {[%emt 0:00:30]} Kb7 {[%emt 0:00:05] Gewichteter Fehlerwert: Weiß=0.59/Schwarz=0.07 (makellos) .  Verlustzug:     	Weiß=1     	---        Fehler:       	Weiß=5     	Schwarz=1     Ungenau:       	Weiß=2     	Schwarz=1     OK:         	Weiß=13    	Schwarz=10    Bester:       	Weiß=1     	Schwarz=3     Stark:        	---       	Schwarz=5} 0-1

[Event "SixDays Budapest GM-C 09-2024"]
[Site "Budapest"]
[Date "2024.09.26"]
[Round "5.4"]
[White "Palczert, Matyas"]
[Black "Mayank Chakraborty"]
[Result "1-0"]
[ECO "C11"]
[WhiteElo "2345"]
[BlackElo "2431"]
[Annotator "RC"]
[PlyCount "101"]
[EventDate "2024.09.24"]
[EventType "tourn"]
[EventCountry "HUN"]
[SourceTitle "playchess.com"]
[Source "ChessBase"]
[SourceQuality "1"]
[TimeControl "5400+30"]

1. e4 {[%emt 0:00:06]} e6 {[%emt 0:02:09]} 2. d4 {[%emt 0:00:10]} d5 {[%emt 0:00:02]} 3. Nc3 {[%emt 0:01:27]} Nf6 {[%emt 0:00:06]} 4. e5 {[%emt 0:00:05]} Nfd7 {[%emt 0:00:03]} 5. f4 {[%emt 0:00:08]} c5 {[%emt 0:00:02]} 6. Nf3 {[%emt 0:00:11]} Nc6 {[%emt 0:00:01]} 7. Be3 {[%emt 0:00:19]} a6 {[%emt 0:00:02]} 8. Qd2 {[%emt 0:00:54]} b5 {[%emt 0:00:01]} 9. dxc5 {[%emt 0:00:45]} Bxc5 10. Bd3 {[%emt 0:00:37]} Qb6 {[%emt 0:00:05]} 11. Bf2 {[%emt 0:00:17]} h6 {[%emt 0:00:01]} 12. O-O {[%emt 0:03:05]} Bxf2+ {[%emt 0:00:03]} 13. Qxf2 {[%emt 0:00:12]} Qxf2+ {[%emt 0:00:03]} 14. Rxf2 {[%emt 0:00:10]} g5 {[%emt 0:00:17]} 15. fxg5 {[%emt 0:04:21]} hxg5 {[%emt 0:01:14]} 16. Nxg5 {[%emt 0:03:53]} Ndxe5 {[%emt 0:00:57]} 17. Re1 {[%emt 0:01:30]} Ra7 {[%emt 0:06:14]} 18. Nf3 {[%emt 0:01:55]} Nxf3+ {[%emt 0:04:55]} 19. Rxf3 {[%emt 0:00:13]} Re7 {[%emt 0:00:37]} 20. Rf6 {[%emt 0:05:24]} Kd7 {[%emt 0:19:38]} 21. a4 {[%emt 0:05:23]} b4 {[%emt 0:03:56]} 22. Ne2 {[%emt 0:00:17]} Kc7 {[%emt 0:13:21]} 23. Ng3 {[%emt 0:05:14]} Rd7 {[%emt 0:05:16]} 24. Ref1 {[%emt 0:02:56]} Ne5 {[%emt 0:01:27]} 25. Re1 {[%emt 0:05:31]} Nxd3 {[%emt 0:02:33]} 26. cxd3 {[%emt 0:00:09]} a5 {[%emt 0:00:28]} 27. Rc1+ {[%emt 0:07:46]} Kd6 {[%emt 0:09:06]} 28. d4 {[%emt 0:02:21]} Ke7 {[%emt 0:00:04]} 29. Rf2 {[%emt 0:00:53]} Ra7 {[%emt 0:01:57]} 30. Rfc2 {[%emt 0:02:21]} Bd7 {[%emt 0:00:31]} 31. b3 {[%emt 0:00:33]} Kd6 {[%emt 0:00:36]} 32. Ne2 {[%emt 0:00:59]} Rh4 {[%emt 0:03:56]} 33. Rf1 {[%emt 0:03:16]} Ke7 {[%emt 0:02:36]} 34. Nf4 {[%emt 0:00:45]} Ra8 {[%emt 0:05:50]} 35. g3 {[%emt 0:03:25]} Rg4 {[%emt 0:00:28]} 36. Kf2 {[%emt 0:04:34]} f6 {[%emt 0:01:55]} 37. h3 {[%emt 0:01:29]} Rgg8 {[%emt 0:00:51]} 38. g4 {[%emt 0:03:11]} Kd6 {[%emt 0:04:16]} 39. Rc5 {[%emt 0:01:17]} Rg5 {[%emt 0:02:38]} 40. Kg3 {[%emt 0:02:52]} f5 {[%emt 0:06:00]} 41. Nd3 {[%emt 0:03:19]} Rag8 {[%emt 0:01:42]} 42. Rf4 {[%emt 0:02:13]} fxg4 {[%emt 0:00:22]} 43. hxg4 {[%emt 0:00:16]} e5 {[%emt 0:00:35]} 44. dxe5+ {[%emt 0:01:25]} Ke7 {[%emt 0:00:01]} 45. Rxa5 {[%emt 0:02:33]} Bxg4 {[%emt 0:00:46]} 46. Kf2 {[%emt 0:01:17]} Bf5 {[%emt 0:01:04]} 47. Rxd5 {[%emt 0:03:08]} Be6 {[%emt 0:01:58]} 48. Rb5 {[%emt 0:02:23]} Bxb3 {[%emt 0:00:21]} 49. Rb7+ {[%emt 0:00:55]} Ke6 {[%emt 0:00:11]} 50. Rf6+ {[%emt 0:00:58]} Kd5 {[%emt 0:00:07]} 51. Rd7+ {[%emt 0:00:20]} 1-0

[Event "SixDays Budapest GM-C 09-2024"]
[Site "Budapest"]
[Date "2024.09.26"]
[Round "5.5"]
[White "Sardana, Rishi"]
[Black "Susilodinata, Andrean"]
[Result "1/2-1/2"]
[ECO "B12"]
[WhiteElo "2477"]
[BlackElo "2393"]
[Annotator "RC"]
[PlyCount "75"]
[EventDate "2024.09.24"]
[EventType "tourn"]
[EventCountry "HUN"]
[SourceTitle "playchess.com"]
[Source "ChessBase"]
[SourceQuality "1"]
[TimeControl "5400+30"]

1. e4 {[%emt 0:01:04]} c6 {[%emt 0:00:04]} 2. d4 {[%emt 0:00:05]} d5 {[%emt 0:00:05]} 3. e5 {[%emt 0:00:04]} Bf5 {[%emt 0:00:07]} 4. Nf3 {[%emt 0:00:08]} e6 {[%emt 0:00:09]} 5. Be2 {[%emt 0:00:08]} Nd7 {[%emt 0:01:47]} 6. O-O {[%emt 0:00:09]} h5 {[%emt 0:07:09]} 7. c4 {[%emt 0:03:59]} dxc4 {[%emt 0:00:41]} 8. Bxc4 {[%emt 0:00:12]} Nh6 {[%emt 0:04:07]} 9. Nc3 {[%emt 0:03:41]} Be7 {[%emt 0:04:55]} 10. Bxh6 {[%emt 0:05:08]} Rxh6 {[%emt 0:00:25]} 11. Bd3 {[%emt 0:00:08]} g6 {[%emt 0:03:31]} 12. Ne4 {[%emt 0:06:17]} Nb6 {[%emt 0:00:58]} 13. Qd2 {[%emt 0:03:31]} Rh8 {[%emt 0:00:08]} 14. b4 {[%emt 0:02:13]} Nd5 {[%emt 0:06:13]} 15. Rab1 {[%emt 0:01:42]} Kf8 {[%emt 0:09:00]} 16. a4 {[%emt 0:07:37]} a5 {[%emt 0:13:53]} 17. bxa5 {[%emt 0:01:11]} Qxa5 {[%emt 0:00:05]} 18. Qxa5 {[%emt 0:08:44]} Rxa5 {[%emt 0:00:02]} 19. Rxb7 {[%emt 0:00:58]} Rxa4 {[%emt 0:00:18]} 20. Nc5 {[%emt 0:08:38]} Bxc5 {[%emt 0:05:33]} 21. Bxf5 {[%emt 0:00:06]} Rb4 {[%emt 0:04:42]} 22. Rb1 {[%emt 0:09:29]} gxf5 {[%emt 0:11:38]} 23. dxc5 {[%emt 0:00:07]} Rxb1+ {[%emt 0:00:07]} 24. Rxb1 {[%emt 0:00:04]} Kg7 {[%emt 0:00:07]} 25. Rb7 {[%emt 0:00:54]} Ra8 {[%emt 0:08:29]} 26. h4 {[%emt 0:01:49]} Ra5 {[%emt 0:00:22]} 27. Ng5 {[%emt 0:01:02]} Kg8 {[%emt 0:00:13]} 28. Rxf7 {[%emt 0:01:48]} Nf4 {[%emt 0:00:49]} 29. Rd7 {[%emt 0:10:03]} Rxc5 {[%emt 0:08:12]} 30. g3 {[%emt 0:01:46]} Ne2+ {[%emt 0:00:43]} 31. Kf1 {[%emt 0:00:10]} Rxe5 {[%emt 0:00:12]} 32. Nf3 {[%emt 0:14:23]} Re4 {[%emt 0:00:06]} 33. Ng5 {[%emt 0:00:20]} Re5 {[%emt 0:00:02]} 34. Nf7 {[%emt 0:05:21]} Rd5 {[%emt 0:02:24]} 35. Nh6+ {[%emt 0:00:08]} Kh8 {[%emt 0:00:02]} 36. Nf7+ {[%emt 0:00:41]} Kg8 {[%emt 0:00:06]} 37. Nh6+ {[%emt 0:00:08]} Kh8 {[%emt 0:00:02]} 38. Nf7+ {[%emt 0:02:25]} 1/2-1/2

[Event "SixDays Budapest GM-C 09-2024"]
[Site "Budapest"]
[Date "2024.09.28"]
[Round "7.1"]
[White "Gretarsson, Helgi Ass"]
[Black "Aczel, Gergely"]
[Result "1/2-1/2"]
[ECO "D35"]
[WhiteElo "2450"]
[BlackElo "2460"]
[Annotator "RC"]
[PlyCount "29"]
[EventDate "2024.09.24"]
[EventType "tourn"]
[EventCountry "HUN"]
[SourceTitle "playchess.com"]
[Source "ChessBase"]
[SourceQuality "1"]
[TimeControl "5400+30"]

1. d4 {[%emt 0:00:02]} d5 {[%emt 0:00:05]} 2. c4 {[%emt 0:00:04]} e6 {[%emt 0:00:04]} 3. Nc3 {[%emt 0:00:03]} Nf6 {[%emt 0:00:05]} 4. cxd5 {[%emt 0:00:04]} Nxd5 {[%emt 0:00:04]} 5. e4 {[%emt 0:00:07]} Nxc3 {[%emt 0:00:03]} 6. bxc3 {[%emt 0:00:04]} c5 {[%emt 0:00:03]} 7. Nf3 {[%emt 0:00:05]} cxd4 {[%emt 0:00:03]} 8. cxd4 {[%emt 0:00:04]} Bb4+ {[%emt 0:00:03]} 9. Bd2 {[%emt 0:00:06]} Bxd2+ {[%emt 0:00:04]} 10. Qxd2 {[%emt 0:00:05]} O-O {[%emt 0:00:04]} 11. Bc4 {[%emt 0:00:08]} Nd7 {[%emt 0:00:04]} 12. O-O {[%emt 0:00:10]} b6 {[%emt 0:00:12]} 13. Rfe1 {[%emt 0:00:10]} Bb7 {[%emt 0:00:05]} 14. Rad1 {[%emt 0:00:06]} Nf6 {[%emt 0:00:31]} 15. Qf4 {[%emt 0:00:15]} 1/2-1/2

[Event "SixDays Budapest GM-C 09-2024"]
[Site "Budapest"]
[Date "2024.09.28"]
[Round "7.3"]
[White "Palczert, Matyas"]
[Black "Grebennikov, Nikolai A."]
[Result "1-0"]
[ECO "B41"]
[WhiteElo "2345"]
[BlackElo "2220"]
[Annotator "ChessBase"]
[PlyCount "73"]
[EventDate "2024.09.24"]
[EventType "tourn"]
[EventCountry "HUN"]
[SourceTitle "playchess.com"]
[Source "ChessBase"]
[SourceQuality "1"]
[TimeControl "5400+30"]

1. e4 {[%emt 0:01:49]} c5 {[%emt 0:08:32]} 2. Nf3 {[%emt 0:00:09]} e6 {[%emt 0:00:28]} 3. d4 {[%emt 0:00:10]} cxd4 {[%emt 0:00:05]} 4. Nxd4 {[%emt 0:00:07]} a6 {[%emt 0:00:04]} 5. c4 {[%emt 0:00:12]} Nf6 {[%emt 0:00:15]} 6. Nc3 {[%emt 0:00:13]} Bb4 {[%emt 0:00:50]} 7. Qd3 {[%emt 0:00:23]} O-O {[%emt 0:00:23]} 8. e5 {[%emt 0:00:21]} Ne8 {[%emt 0:00:04]} 9. Bf4 {[%emt 0:01:34]} d6 {[%emt 0:00:24]} 10. exd6 {[%emt 0:00:59]} Bxd6 {[%emt 0:00:43]} 11. Nf3 {[%emt 0:01:18]} Nc6 {[%emt 0:07:15]} 12. Bxd6 {[%emt 0:00:44]} Qxd6 {[%emt 0:00:14]} 13. Qxd6 {[%emt 0:00:19]} Nxd6 {[%emt 0:00:03]} 14. O-O-O {[%emt 0:00:21]} Ne8 {[%emt 0:09:02]} 15. Nd4 {[%emt 0:07:34]} Nxd4 {[%emt 0:06:43]} 16. Rxd4 {[%emt 0:00:11]} e5 {[%emt 0:00:31]} 17. Rd5 {[%emt 0:08:17]} f6 {[%emt 0:00:25]} 18. Rd8 {[%emt 0:09:34]} Nc7 {[%emt 0:01:50]} 19. Rd6 {[%emt 0:00:42]} Be6 {[%emt 0:11:44]} 20. Be2 {[%emt 0:02:07]} b5 {[%emt 0:07:01]} 21. c5 {[%emt 0:09:09]} b4 {[%emt 0:01:04]} 22. Na4 {[%emt 0:00:29]} Bxa2 {[%emt 0:01:55]} 23. Nb6 {[%emt 0:02:05]} Ra7 {[%emt 0:02:09]} 24. Rd7 {[%emt 0:09:59]} Be6 {[%emt 0:03:22]} 25. Rhd1 {[%emt 0:05:30]} Bxd7 {[%emt 0:02:41]} 26. Rxd7 {[%emt 0:00:11]} g6 {[%emt 0:07:22]} 27. Kb1 {[%emt 0:01:23]} Kh8 {[%emt 0:01:50]} 28. Bc4 {[%emt 0:02:57]} f5 {[%emt 0:04:48]} 29. Nd5 {[%emt 0:11:34]} Rc8 {[%emt 0:00:49]} 30. Ne7 {[%emt 0:01:20]} Re8 {[%emt 0:02:21]} 31. Nc6 {[%emt 0:00:55]} Rb7 {[%emt 0:10:46]} 32. Nd8 {[%emt 0:01:31]} Rxd8 {[%emt 0:02:58]} 33. Rxd8+ {[%emt 0:00:09]} Kg7 {[%emt 0:00:01]} 34. c6 {[%emt 0:01:03]} Ra7 {[%emt 0:00:26]} 35. Rb8 {[%emt 0:00:26]} Ra8 {[%emt 0:05:34]} 36. Rb7 {[%emt 0:00:26]} Rc8 {[%emt 0:00:13]} 37. Be6 {[%emt 0:00:22]} 1-0